fUSD/lending_fUSD_20240827
["ID","MTS","AMOUNT","RATE_DAILY","PERIOD"]
[336201843,1724734240172,-500.0,0.00010999,2]
[336201845,1724734240181,-500.0,0.00010999,2]
[336201847,1724734240191,-494.55243794,0.00010999,2]
[336201849,1724734240200,-152.312416,0.00010999,2]
[336201851,1724734240210,-170.32994,0.00010999,2]
[336201853,1724734240219,-152.721319,0.00010999,2]
[336201855,1724734240229,-170.32994,0.00010999,2]
[336201857,1724734240239,-151.0,0.00010999,2]
[336201858,1724734240250,-151.0,0.00010999,2]
[336201860,1724734240259,-172.896101,0.00010999,2]
[336201863,1724734240269,-689.489451,0.00010999,2]
[336201865,1724734240278,-172.896101,0.00010999,2]
[336201866,1724734240288,-689.489451,0.00010999,2]
[336201868,1724734240297,-500.0,0.00010999,2]
[336201870,1724734240307,-151.0,0.00010999,2]
[336201872,1724734240316,-252.56093595,0.00010999,2]
[336201874,1724734240325,-500.0,0.00010999,2]
[336201876,1724734240335,-500.0,0.00010999,2]
[336201878,1724734240345,-309.616588,0.00010999,2]
[336201880,1724734240354,-500.0,0.00010999,2]
[336201882,1724734240363,-500.0,0.00010999,2]
[336201884,1724734240372,-500.0,0.00010999,2]
[336201886,1724734240382,-500.0,0.00010999,2]
[336201888,1724734240391,-331.190001,0.00010999,2]
[336201890,1724734240400,-500.0,0.00010999,2]
[336201892,1724734240409,-500.0,0.00010999,2]
[336201894,1724734240418,-500.0,0.00010999,2]
[336201896,1724734240428,-500.0,0.00010999,2]
[336201898,1724734240437,-500.0,0.00010999,2]
[336201900,1724734240446,-309.616588,0.00010999,2]
[336201902,1724734240456,-500.0,0.00010999,2]
[336201904,1724734240465,-500.0,0.00010999,2]
[336201906,1724734240474,-500.0,0.00010999,2]
[336201908,1724734240483,-500.0,0.00010999,2]
[336201910,1724734240493,-500.0,0.00010999,2]
[336201912,1724734240502,-500.0,0.00010999,2]
[336201914,1724734240512,-296.43,0.00010999,2]
[336201916,1724734240521,-331.190001,0.00010999,2]
[336201918,1724734240531,-500.0,0.00010999,2]
[336201920,1724734240540,-500.0,0.00010999,2]
[336201922,1724734240550,-500.0,0.00010999,2]
[336201924,1724734240559,-500.0,0.00010999,2]
[336201926,1724734240568,-500.0,0.00010999,2]
[336201928,1724734240578,-151.0,0.00010999,2]
[336201930,1724734240587,-500.0,0.00010999,2]
[336201932,1724734240598,-500.0,0.00010999,2]
[336201934,1724734240607,-500.0,0.00010999,2]
[336201936,1724734240617,-443.30010687,0.00010999,2]
[336201938,1724734240627,-151.0,0.00010999,2]
[336201940,1724734240636,-152.633374,0.00010999,2]
[336201942,1724734240646,-760.15643,0.00010999,2]
[336201944,1724734240657,-760.15643,0.00010999,2]
[336201946,1724734240666,-500.0,0.00010999,2]
[336201948,1724734240675,-500.0,0.00010999,2]
[336201950,1724734240685,-500.0,0.00010999,2]
[336201952,1724734240695,-500.0,0.00010999,2]
[336201954,1724734240704,-500.0,0.00010999,2]
[336201956,1724734240713,-500.0,0.00010999,2]
[336201958,1724734240722,-500.0,0.00010999,2]
[336201960,1724734240732,-500.0,0.00010999,2]
[336201962,1724734240741,-152.642802,0.00010999,2]
[336201964,1724734240751,-152.642802,0.00010999,2]
[336201966,1724734240760,-151.0,0.00010999,2]
[336201968,1724734240769,-152.470428,0.00010999,2]
[336201969,1724734240779,-151.0,0.00010999,2]
[336201971,1724734240787,-151.0,0.00010999,2]
[336201973,1724734240796,-151.0,0.00010999,2]
[336201975,1724734240807,-152.795724,0.00010999,2]
[336201977,1724734240817,-151.0,0.00010999,2]
[336201979,1724734240826,-245.610079,0.00010999,2]
[336201981,1724734240836,-500.0,0.00010999,2]
[336201983,1724734240845,-500.0,0.00010999,2]
[336201985,1724734240856,-500.0,0.00010999,2]
[336201987,1724734240866,-500.0,0.00010999,2]
[336201989,1724734240877,-500.0,0.00010999,2]
[336201990,1724734240886,-500.0,0.00010999,2]
[336201992,1724734240895,-500.0,0.00010999,2]
[336201994,1724734240905,-500.0,0.00010999,2]
[336201996,1724734240914,-500.0,0.00010999,2]
[336201998,1724734240924,-500.0,0.00010999,2]
[336202000,1724734240933,-500.0,0.00010999,2]
[336202002,1724734240942,-500.0,0.00010999,2]
[336202004,1724734240952,-500.0,0.00010999,2]
[336202006,1724734240962,-500.0,0.00010999,2]
[336202008,1724734240972,-500.0,0.00010999,2]
[336202010,1724734240982,-514.05,0.00010999,2]
[336202012,1724734240991,-500.0,0.00010999,2]
[336202014,1724734241001,-500.0,0.00010999,2]
[336202016,1724734241011,-500.0,0.00010999,2]
[336202018,1724734241020,-414.8245907,0.00010999,2]
[336202020,1724734241030,-500.0,0.00010999,2]
[336202022,1724734241039,-500.0,0.00010999,2]
[336202024,1724734241049,-500.0,0.00010999,2]
[336202026,1724734241058,-500.0,0.00010999,2]
[336202028,1724734241068,-500.0,0.00010999,2]
[336202030,1724734241077,-500.0,0.00010999,2]
[336202032,1724734241087,-262.83788,0.00010999,2]
[336202033,1724734241096,-500.0,0.00010999,2]
[336202035,1724734241105,-500.0,0.00010999,2]
[336202037,1724734241115,-557.422333,0.00010999,2]
[336202039,1724734241124,-3173.373279,0.00010999,2]
[336202041,1724734241133,-262.83788,0.00010999,2]
[336202043,1724734241143,-557.422333,0.00010999,2]
[336202045,1724734241153,-3173.373279,0.00010999,2]
[336202047,1724734241163,-151.0,0.00010999,2]
[336202049,1724734241176,-151.0,0.00010999,2]
[336202051,1724734241186,-500.0,0.00010999,2]
[336202054,1724734241196,-500.0,0.00010999,2]
[336202055,1724734241206,-500.0,0.00010999,2]
[336202057,1724734241215,-363.87246005,0.00010999,2]
[336202059,1724734241227,-151.0,0.00010999,2]
[336202061,1724734241236,-325.136043,0.00010999,2]
[336202063,1724734241245,-151.0,0.00010999,2]
[336202065,1724734241257,-325.136043,0.00010999,2]
[336202067,1724734241266,-500.0,0.00010999,2]
[336202069,1724734241277,-500.0,0.00010999,2]
[336202071,1724734241289,-500.0,0.00010999,2]
[336202073,1724734241298,-500.0,0.00010999,2]
[336202075,1724734241309,-500.0,0.00010999,2]
[336202077,1724734241319,-500.0,0.00010999,2]
[336202079,1724734241330,-500.0,0.00010999,2]
[336202082,1724734241344,-500.0,0.00010999,2]
[336202084,1724734241356,-500.0,0.00010999,2]
[336202086,1724734241365,-151.0,0.00010999,2]
[336202088,1724734241374,-151.0,0.00010999,2]
[336202089,1724734241385,-152.954779,0.00010999,2]
[336202092,1724734241395,-500.0,0.00010999,2]
[336202093,1724734241404,-500.0,0.00010999,2]
[336202095,1724734241413,-500.0,0.00010999,2]
[336202097,1724734241423,-220.691155,0.00010999,2]
[336202099,1724734241432,-222.82605221,0.00010999,2]
[336202101,1724734241442,-151.0,0.00010999,2]
[336202103,1724734241451,-296.245821,0.00010999,2]
[336202105,1724734241460,-151.0,0.00010999,2]
[336202107,1724734241470,-151.0,0.00010999,2]
[336202109,1724734241479,-296.245821,0.00010999,2]
[336202111,1724734241489,-151.0,0.00010999,2]
[336202113,1724734241499,-679.11,0.00010999,2]
[336202115,1724734241508,-679.11,0.00010999,2]
[336202117,1724734241517,-679.11,0.00010999,2]
[336202119,1724734241527,-679.11,0.00010999,2]
[336202121,1724734241536,-679.11,0.00010999,2]
[336202123,1724734241546,-679.11,0.00010999,2]
[336202124,1724734241555,-679.11,0.00010999,2]
[336202126,1724734241565,-679.11,0.00010999,2]
[336202128,1724734241576,-679.11,0.00010999,2]
[336202131,1724734241587,-679.11,0.00010999,2]
[336202132,1724734241597,-151.0,0.00010999,2]
[336202134,1724734241607,-679.11,0.00010999,2]
[336202136,1724734241617,-679.11,0.00010999,2]
[336202138,1724734241627,-679.11,0.00010999,2]
[336202140,1724734241637,-679.11,0.00010999,2]
[336202142,1724734241647,-679.11,0.00010999,2]
[336202144,1724734241657,-679.11,0.00010999,2]
[336202146,1724734241667,-679.11,0.00010999,2]
[336202148,1724734241677,-500.0,0.00010999,2]
[336202150,1724734241688,-679.11,0.00010999,2]
[336202152,1724734241697,-500.0,0.00010999,2]
[336202154,1724734241707,-679.11,0.00010999,2]
[336202156,1724734241717,-500.0,0.00010999,2]
[336202158,1724734241726,-679.11,0.00010999,2]
[336202160,1724734241736,-500.0,0.00010999,2]
[336202162,1724734241747,-679.11,0.00010999,2]
[336202164,1724734241756,-500.0,0.00010999,2]
[336202166,1724734241766,-679.11,0.00010999,2]
[336202168,1724734241775,-679.24000001,0.00010999,2]
[336202170,1724734241785,-500.0,0.00010999,2]
[336202172,1724734241794,-500.0,0.00010999,2]
[336202174,1724734241803,-500.0,0.00010999,2]
[336202176,1724734241812,-500.0,0.00010999,2]
[336202178,1724734241822,-500.0,0.00010999,2]
[336202180,1724734241831,-500.0,0.00010999,2]
[336202181,1724734241848,-500.0,0.00010999,2]
[336202183,1724734241858,-500.0,0.00010999,2]
[336202185,1724734241867,-500.0,0.00010999,2]
[336202187,1724734241876,-500.0,0.00010999,2]
[336202189,1724734241886,-500.0,0.00010999,2]
[336202191,1724734241896,-500.0,0.00010999,2]
[336202193,1724734241905,-500.0,0.00010999,2]
[336202194,1724734241915,-500.0,0.00010999,2]
[336202196,1724734241924,-500.0,0.00010999,2]
[336202198,1724734241933,-500.0,0.00010999,2]
[336202200,1724734241943,-500.0,0.00010999,2]
[336202202,1724734241952,-500.0,0.00010999,2]
[336202204,1724734241962,-500.0,0.00010999,2]
[336202206,1724734241971,-546.4965145,0.00010999,2]
[336202208,1724734241981,-500.0,0.00010999,2]
[336202210,1724734241990,-500.0,0.00010999,2]
[336202212,1724734242000,-317.28464202,0.00010999,2]
[336202214,1724734242009,-152.12794,0.00010999,2]
[336202216,1724734242019,-152.12794,0.00010999,2]
[336202218,1724734242028,-151.0,0.00010999,2]
[336202220,1724734242037,-151.0,0.00010999,2]
[336202222,1724734242047,-500.0,0.00010999,2]
[336202224,1724734242056,-500.0,0.00010999,2]
[336202226,1724734242070,-500.0,0.00010999,2]
[336202228,1724734242079,-500.0,0.00010999,2]
[336202230,1724734242093,-500.0,0.00010999,2]
[336202232,1724734242102,-500.0,0.00010999,2]
[336202235,1724734242111,-500.0,0.00010999,2]
[336202236,1724734242121,-606.70567062,0.00010999,2]
[336202238,1724734242130,-500.0,0.00010999,2]
[336202240,1724734242139,-500.0,0.00010999,2]
[336202242,1724734242148,-500.0,0.00010999,2]
[336202244,1724734242158,-500.0,0.00010999,2]
[336202246,1724734242171,-500.0,0.00010999,2]
[336202248,1724734242180,-500.0,0.00010999,2]
[336202250,1724734242189,-480.02777701,0.00010999,2]
[336202252,1724734242199,-500.0,0.00010999,2]
[336202254,1724734242210,-500.0,0.00010999,2]
[336202256,1724734242219,-533.74807834,0.00010999,2]
[336202258,1724734242228,-151.0,0.00010999,2]
[336202260,1724734242238,-500.0,0.00010999,2]
[336202262,1724734242249,-500.0,0.00010999,2]
[336202264,1724734242259,-500.0,0.00010999,2]
[336202266,1724734242268,-500.0,0.00010999,2]
[336202268,1724734242278,-500.0,0.00010999,2]
[336202270,1724734242287,-500.0,0.00010999,2]
[336202272,1724734242296,-500.0,0.00010999,2]
[336202289,1724734242452,-500.0,0.00010999,2]
[336202291,1724734242463,-500.0,0.00010999,2]
[336202294,1724734242474,-643.96388677,0.00010999,2]
[336202296,1724734242484,-500.0,0.00010999,2]
[336202298,1724734242493,-500.0,0.00010999,2]
[336202300,1724734242503,-500.0,0.00010999,2]
[336202302,1724734242513,-500.0,0.00010999,2]
[336202304,1724734242522,-500.0,0.00010999,2]
[336202306,1724734242531,-500.0,0.00010999,2]
[336202308,1724734242541,-500.0,0.00010999,2]
[336202310,1724734242550,-500.0,0.00010999,2]
[336202312,1724734242560,-500.0,0.00010999,2]
[336202313,1724734242569,-613.16229513,0.00010999,2]
[336202315,1724734242579,-500.0,0.00010999,2]
[336202318,1724734242590,-500.0,0.00010999,2]
[336202319,1724734242599,-183.20563947,0.00010999,2]
[336202321,1724734242608,-209.19489899,0.00010999,2]
[336202323,1724734242618,-500.0,0.00010999,2]
[336202325,1724734242627,-228.37516742,0.00010999,2]
[336202327,1724734242637,-622.5645533,0.00010999,2]
[336202331,1724734242648,-539.15486565,0.00010999,2]
[336202334,1724734242657,-66810.91996625,0.00011,2]
[336202335,1724734242667,-122660.05177953,0.00011,2]
[336202343,1724734242737,-631.46897288,0.00011,2]
[336202903,1724734248479,34751.1516062,4.781e-05,7]
[336204034,1724734260885,500.0,8.464e-05,2]
[336204388,1724734304134,500.0,8.22e-05,2]
[336204389,1724734304166,500.0,8.22e-05,2]
[336204390,1724734305533,876.1548,9.997e-05,2]
[336204391,1724734310296,500.0,8.22e-05,2]
[336204392,1724734321247,150.9,7.437e-05,2]
[336204393,1724734326130,500.0,8.464e-05,2]
[336204394,1724734327722,500.0,9.834e-05,2]
[336204395,1724734371283,500.0,8.464e-05,2]
[336204396,1724734373670,500.0,9.834e-05,2]
[336204397,1724734399815,1050.0,9.834e-05,2]
[336204398,1724734403687,537.97913644,9.834e-05,2]
[336204399,1724734437007,473.87899709,9.834e-05,2]
[336204400,1724734479038,500.0,8.464e-05,2]
[336204401,1724734480616,500.0,9.834e-05,2]
[336204402,1724734487165,527.26495798,9.999e-05,2]
[336204403,1724734494791,256.14758321,9.999e-05,2]
[336204404,1724734499549,275.70718727,0.0001,2]
[336204405,1724734503901,279.6,8.219e-05,2]
[336204406,1724734508693,500.0,8.464e-05,2]
[336204407,1724734510391,500.0,9.834e-05,2]
[336204408,1724734520900,1276.46945797,9.999e-05,2]
[336204409,1724734536352,500.0,8.22e-05,2]
[336204410,1724734536484,500.0,8.22e-05,2]
[336204411,1724734548022,500.0,8.22e-05,2]
[336204412,1724734562896,195.64,9.979e-05,2]
[336204413,1724734767613,1213.71136946,9.945e-05,2]
[336204414,1724734772616,1213.71136945,9.952e-05,2]
[336204415,1724734777820,1213.71136945,9.958e-05,2]
[336204416,1724734795408,233.45,9.952e-05,2]
[336204417,1724734799271,294.68007056,9.958e-05,2]
[336204418,1724734891453,156.42,7.21e-05,2]
[336204420,1724734910312,250.0,9.95e-05,2]
[336204421,1724735012053,1089.39,9.955e-05,2]
[336204422,1724735032522,183.1,9.955e-05,2]
[336204423,1724735048866,172.62,9.987e-05,2]
[336204424,1724735056800,302.85,8.219e-05,2]
[336204425,1724735083773,400.0,9.966e-05,2]
[336204426,1724735120014,205.49,9.96e-05,2]
[336204427,1724735166317,150.0,9.955e-05,2]
[336204428,1724735201121,408.33137705,9.999e-05,2]
[336204435,1724735266143,151.12,7.952e-05,2]
[336204436,1724735290368,200.83359419,9.949e-05,2]
[336204439,1724735300362,20000.0,0.0001,2]
[336204440,1724735316392,155.0,9.999e-05,2]
[336204453,1724735388804,813.24,9.918e-05,2]
[336204459,1724735406993,250.0,9.937e-05,2]
[336204780,1724735438052,-429.01,0.00010009,2]
[336204781,1724735438062,-660.97560103,0.00010009,2]
[336204782,1724735438072,-27.93612106,0.00010026,2]
[336204783,1724735438213,-431.44916656,0.00010026,2]
[336204784,1724735438223,-155.41013361,0.00010026,2]
[336204785,1724735438232,-213.26727825,0.00010026,2]
[336204786,1724735438241,-172.2,0.00010045,2]
[336204787,1724735438250,-319.13759906,0.00010097,2]
[336204788,1724735438259,-297.94,0.00010097,2]
[336204789,1724735438271,-155.0,0.00010097,2]
[336204790,1724735438282,-641.82745671,0.00010371,2]
[336204791,1724735438292,-302.85,0.00010476,2]
[336204792,1724735438301,-191.386007,0.00010485,2]
[336204793,1724735438311,-223.08654922,0.00010505,2]
[336204794,1724735438321,-213.22136781,0.000107,2]
[336204795,1724735438331,-353.67715718,0.000107,2]
[336204796,1724735438342,-216.42148285,0.000107,2]
[336204797,1724735438351,-150.0,0.00010799,2]
[336204798,1724735438360,-300.0,0.00010799,2]
[336204799,1724735438369,-300.0,0.00010799,2]
[336204800,1724735438378,-664.66,0.000108,2]
[336204801,1724735438387,-427.02,0.000108,2]
[336204802,1724735438397,-531.76,0.000108,2]
[336204803,1724735438406,-531.76,0.000108,2]
[336204804,1724735438415,-427.02,0.000108,2]
[336204805,1724735438424,-531.76,0.000108,2]
[336204807,1724735438433,-427.02,0.000108,2]
[336204809,1724735438442,-550881.2729777,0.000108,2]
[336204975,1724735440110,-1467.29741007,0.000108,2]
[336204977,1724735440122,-1221.18105363,0.000108,2]
[336204983,1724735440167,-867.74640596,0.000108,2]
[336204985,1724735440178,-1146.80056203,0.000108,2]
[336204990,1724735440224,-264.4956,0.000108,2]
[336204992,1724735440235,-1950.58610927,0.000108,2]
[336204998,1724735440282,-574.96549584,0.000108,2]
[336205005,1724735440340,-3257.921871,0.000108,2]
[336205008,1724735440352,-302.0,0.000108,2]
[336205010,1724735440362,-896.82497611,0.000108,2]
[336205012,1724735440373,-383.57266039,0.000108,2]
[336205014,1724735440384,-5441.758176,0.000108,2]
[336205286,1724735443316,-190.82640582,0.000107,2]
[336205288,1724735443326,-104529.8886657,0.000108,2]
[336205580,1724735446075,-916.4439397,0.000108,2]
[336205598,1724735446241,-31603.5,0.000108,2]
[336205757,1724735495654,500.0,8.22e-05,2]
[336205758,1724735497184,500.0,8.464e-05,2]
[336205759,1724735499243,500.0,9.834e-05,2]
[336205760,1724735526370,500.0,8.22e-05,2]
[336205761,1724735527966,500.0,8.464e-05,2]
[336205762,1724735529570,500.0,9.834e-05,2]
[336205763,1724735542678,291.05,8.219e-05,2]
[336205765,1724735590815,156.42,7.221e-05,2]
[336205766,1724735591795,500.0,8.22e-05,2]
[336205767,1724735602538,200.0,9.961e-05,2]
[336205768,1724735622940,531.64175909,9.963e-05,2]
[336205769,1724735665975,205.49,9.954e-05,2]
[336205770,1724735776933,151.12,7.946e-05,2]
[336205772,1724735869729,667.99430408,9.631e-05,2]
[336205773,1724735915146,1050.0,0.0001,2]
[336205774,1724735951003,349.4,9.887e-05,2]
[336205775,1724736104529,305.03,8.219e-05,2]
[336205776,1724736133318,156.42,7.07e-05,2]
[336205777,1724736153779,26178.02925167,9.999e-05,2]
[336205778,1724736194275,523.39091194,8.57e-05,2]
[336205779,1724736202786,477.41127141,8.57e-05,2]
[336205780,1724736205010,1259.222228,9.999e-05,2]
[336205781,1724736216521,967.47641603,8.57e-05,2]
[336205782,1724736259619,602.93,9.835e-05,2]
[336205783,1724736330207,408.33137705,9.999e-05,2]
[336205786,1724736353365,200.0,9.848e-05,2]
[336205787,1724736412144,504.0,0.0001,2]
[336205814,1724736451538,341.36924361,0.0001,4]
[336205815,1724736471872,720.48,9.783e-05,2]
[336205816,1724736479521,1276.92015921,9.999e-05,2]
[336205817,1724736480595,202.06087457,9.999e-05,2]
[336205860,1724736586572,600.0,9.999e-05,2]
[336205867,1724736595347,1960.16358728,9.999e-05,2]
[336205868,1724736596454,5374.61330191,9.999e-05,2]
[336205869,1724736614244,289.77,8.219e-05,2]
[336205870,1724736615643,156.42,7.052e-05,2]
[336205889,1724736638095,-1332.869238,0.00010008,2]
[336205890,1724736638152,-1813.130762,0.00010008,2]
[336205891,1724736638161,-155.52409505,0.00010009,2]
[336205892,1724736638171,-3422.88172736,0.00010009,2]
[336205893,1724736638180,-300.0,0.00010025,2]
[336205894,1724736638189,-227.95979522,0.00010026,2]
[336205895,1724736638199,-310.0,0.00010026,2]
[336205896,1724736638208,-450.0,0.00010026,2]
[336205897,1724736638217,-330.86892541,0.00010026,2]
[336205898,1724736638226,-150.0,0.00010029,2]
[336205899,1724736638236,-1000.0,0.0001003,2]
[336205900,1724736638245,-317.19005932,0.00010097,2]
[336205901,1724736638254,-893.9951293,0.00010097,2]
[336205902,1724736638268,-158.89272963,0.00010097,2]
[336205903,1724736638277,-250.12856752,0.00010097,2]
[336205904,1724736638286,-959.16183917,0.00010097,2]
[336205905,1724736638298,-14537.66087417,0.00010097,2]
[336205906,1724736638309,-180.68,0.00010382,2]
[336205907,1724736638319,-289.77,0.00010465,2]
[336205908,1724736638328,-499.99,0.00010471,2]
[336205909,1724736638338,-977.53,0.00010505,2]
[336205910,1724736638347,-4982.2,0.00010505,2]
[336205911,1724736638356,-527.24751742,0.00010505,2]
[336205912,1724736638365,-650.06462,0.0001069,2]
[336205913,1724736638374,-1544.0,0.00010697,2]
[336205914,1724736638383,-172.626,0.00010697,2]
[336205915,1724736638392,-1089.216,0.00010697,2]
[336205916,1724736638401,-176.73937188,0.000107,2]
[336205917,1724736638410,-6749.8293,0.000107,2]
[336205918,1724736638419,-23644.1648,0.000107,2]
[336205919,1724736638429,-827.9067,0.000107,2]
[336205920,1724736638438,-6048.896,0.000107,2]
[336205921,1724736638447,-1000.0,0.000107,2]
[336205923,1724736638456,-907.7,0.000107,2]
[336205925,1724736638465,-2500.0,0.000107,2]
[336205927,1724736638474,-156.1055825,0.000107,2]
[336205929,1724736638483,-306.31409132,0.000107,2]
[336205931,1724736638492,-1971.83420491,0.000107,2]
[336205932,1724736638501,-374.0,0.00010713,2]
[336205934,1724736638510,-3877.81959156,0.00010713,2]
[336205936,1724736638520,-650.06463,0.0001073,2]
[336205938,1724736638529,-150.0,0.00010745,2]
[336205966,1724736638725,-209.05894527,0.00010752,2]
[336205968,1724736638737,-650.06463,0.0001077,2]
[336205970,1724736638747,-200.0,0.00010773,2]
[336205972,1724736638756,-504.17945197,0.00010773,2]
[336205974,1724736638766,-150.0,0.00010797,2]
[336205976,1724736638775,-150.0,0.00010797,2]
[336205978,1724736638784,-150.0,0.00010797,2]
[336205980,1724736638794,-150.0,0.00010797,2]
[336205982,1724736638803,-150.0,0.00010797,2]
[336205984,1724736638813,-163.34208779,0.00010797,2]
[336205986,1724736638823,-150.0,0.00010798,2]
[336205987,1724736638833,-150.0,0.00010798,2]
[336205990,1724736638842,-150.0,0.00010798,2]
[336205992,1724736638852,-150.0,0.00010798,2]
[336205993,1724736638863,-150.0,0.00010798,2]
[336205994,1724736638872,-2034.49444349,0.00010799,2]
[336205995,1724736638881,-2817998.96539132,0.000108,2]
[336205996,1724736638893,-2565.0,0.000108,2]
[336205997,1724736638904,-659.2,0.000108,2]
[336205998,1724736638919,-2000.0,0.000108,2]
[336205999,1724736638934,-2900.0,0.000108,2]
[336206000,1724736638945,-5806.02685814,0.000108,2]
[336206001,1724736638957,-5229.0304695,0.000108,2]
[336206123,1724736640197,-556.0,0.00010697,2]
[336206125,1724736640206,-121.77599124,0.000108,2]
[336206149,1724736640427,-382.54972428,0.000108,2]
[336206151,1724736640438,-151248.086142,0.000108,2]
[336206157,1724736640489,-11154.02902372,0.000108,2]
[336206248,1724736641300,277.55,9.976e-05,2]
[336206437,1724736643241,-893.9951293,0.00010026,2]
[336206439,1724736643252,-447.901,0.00010697,2]
[336206441,1724736643263,-4411.82972878,0.000108,2]
[336206443,1724736643274,-701.11,0.000108,2]
[336206445,1724736643291,-317.19005932,0.00010026,2]
[336206447,1724736643301,-541.49485738,0.000108,2]
[336206450,1724736643312,-316.220239,0.000108,2]
[336206455,1724736643357,-31627.22698091,0.000108,2]
[336206462,1724736643415,-64488.56442754,0.000108,2]
[336206733,1724736646097,-855.84569065,0.000108,2]
[336206735,1724736646108,-1312.03395148,0.000108,2]
[336206738,1724736646120,-20967.65251968,0.000108,2]
[336206742,1724736646157,-1973.60967681,0.000108,2]
[336206744,1724736646169,-2356.43045917,0.000108,2]
[336206768,1724736646390,-254.08592998,0.000108,2]
[336206771,1724736646402,-3052.56,0.000108,2]
[336206773,1724736646415,-409.86,0.000108,2]
[336206775,1724736646426,-2544.01325688,0.000108,2]
[336207606,1724736660324,400.0,0.0001,3]
[336207607,1724736669232,299.85042188,8.548e-05,2]
[336207608,1724736682551,197.51708385,8.548e-05,2]
[336207609,1724736685092,500.0,8.22e-05,2]
[336207610,1724736685194,500.0,8.464e-05,2]
[336207611,1724736686776,500.0,9.834e-05,2]
[336207612,1724736702970,500.0,8.22e-05,2]
[336207613,1724736704689,500.0,8.464e-05,2]
[336207614,1724736706710,500.0,9.834e-05,2]
[336207615,1724736771180,15851.91,9.779e-05,2]
[336207616,1724736801753,500.0,8.464e-05,2]
[336207617,1724736803347,500.0,9.834e-05,2]
[336207618,1724736973870,360.0,9.702e-05,2]
[336207619,1724737118792,311.93,8.219e-05,2]
[336207620,1724737127282,1000.0,9.613e-05,2]
[336207622,1724737168002,155.0,9.999e-05,2]
[336207623,1724737184744,26182.71491434,9.999e-05,2]
[336207624,1724737186733,1000.0,0.0001,10]
[336207625,1724737190460,189.75510782,9.999e-05,2]
[336207626,1724737228512,156.42,6.886e-05,2]
[336207627,1724737242662,341.36924361,0.0001,4]
[336207628,1724737260415,155.45054556,0.0001,2]
[336207629,1724737316711,164.40260801,9.999e-05,2]
[336207631,1724737352604,341.36924361,0.0001,4]
[336207633,1724737386460,155.0,9.999e-05,2]
[336207634,1724737460314,164.37927092,9.999e-05,2]
[336207635,1724737461274,408.33137705,9.999e-05,2]
[336207636,1724737475894,203.41395605,9.999e-05,2]
[336207637,1724737514935,186.66,9.649e-05,2]
[336207638,1724737607101,1276.92015921,9.999e-05,2]
[336207639,1724737607901,200.0,9.734e-05,2]
[336207640,1724737619864,348.62432764,9.999e-05,2]
[336207643,1724737629402,312.56,8.219e-05,2]
[336207650,1724737641339,400.0,0.0001,3]
[336207657,1724737677000,3500.0,0.0001,2]
[336207658,1724737707124,341.36924361,0.0001,4]
[336207659,1724737718644,1050.0,0.0001,2]
[336207673,1724737806888,341.36924361,0.0001,4]
[336207676,1724737832379,-300.0,0.00010099,2]
[336207677,1724737832388,-609.63404358,0.000101,5]